[Event "Live Chess"]
[Site "Chess.com"]
[Date "2023.05.21"]
[Round "-"]
[White "Misha145Chess"]
[Black "Dhaydon19"]
[Result "0-1"]
[WhiteElo "620"]
[BlackElo "2692"]
[TimeControl "300"]
[EndTime "8:54:21 PDT"]
[Termination "Dhaydon19 won by resignation"]

1. e4 {[%clk 0:04:56.5]} 1... c6 {[%clk 0:04:59.5]} 2. d4 {[%clk 0:04:54.5]}
2... d5 {[%clk 0:04:56.7]} 3. Nc3 {[%clk 0:04:54.3]} 3... dxe4 {[%clk
0:04:54.9]} 4. Nxe4 {[%clk 0:04:53.4]} 4... Nf6 {[%clk 0:04:52.8]} 5. Ng5 {[%clk
0:03:09]} 5... h6 {[%clk 0:04:47.6]} 6. N5h3 {[%clk 0:02:45.5]} 6... Bxh3 {[%clk
0:04:45.6]} 7. gxh3 {[%clk 0:02:44.5]} 7... e6 {[%clk 0:04:44.9]} 8. c4 {[%clk
0:02:41.5]} 8... Bb4+ {[%clk 0:04:39.1]} 9. Bd2 {[%clk 0:02:39.9]} 9... Bxd2+
{[%clk 0:04:37.3]} 10. Qxd2 {[%clk 0:02:38.9]} 10... Nbd7 {[%clk 0:04:36.7]} 11.
O-O-O {[%clk 0:02:37.8]} 11... Qc7 {[%clk 0:04:35.6]} 12. d5 {[%clk 0:02:36.9]}
12... cxd5 {[%clk 0:04:34.3]} 0-1

[Event "Live Chess"]
[Site "Chess.com"]
[Date "2023.05.21"]
[Round "-"]
[White "EdenHazard8"]
[Black "onemoretime1975"]
[Result "0-1"]
[WhiteElo "1939"]
[BlackElo "1850"]
[TimeControl "300"]
[EndTime "8:54:24 PDT"]
[Termination "onemoretime1975 won by resignation"]

1. e4 {[%clk 0:04:57.4]} 1... e6 {[%clk 0:04:59.1]} 2. d4 {[%clk 0:04:56.2]}
2... d5 {[%clk 0:04:57.6]} 3. Nd2 {[%clk 0:04:55]} 3... Nf6 {[%clk 0:04:54.4]}
4. e5 {[%clk 0:04:53.8]} 4... Nfd7 {[%clk 0:04:53.1]} 5. Bd3 {[%clk 0:04:52.8]}
5... c5 {[%clk 0:04:50.3]} 6. c3 {[%clk 0:04:52.2]} 6... Nc6 {[%clk 0:04:48.9]}
7. Ngf3 {[%clk 0:04:50.6]} 7... b6 {[%clk 0:04:46.8]} 8. O-O {[%clk 0:04:50.1]}
8... Bb7 {[%clk 0:04:45.3]} 9. a4 {[%clk 0:04:49.7]} 9... a6 {[%clk 0:04:43]}
10. Re1 {[%clk 0:04:45.8]} 10... Be7 {[%clk 0:04:39.8]} 11. Nf1 {[%clk
0:04:44.7]} 11... h6 {[%clk 0:04:37.3]} 12. Ng3 {[%clk 0:04:43.8]} 12... cxd4
{[%clk 0:04:19.5]} 13. cxd4 {[%clk 0:04:42.1]} 13... Bb4 {[%clk 0:04:16.2]} 14.
Bd2 {[%clk 0:04:41]} 14... Bxd2 {[%clk 0:04:14]} 15. Qxd2 {[%clk 0:04:40.9]}
15... Rc8 {[%clk 0:04:06.9]} 16. Bb1 {[%clk 0:04:39.4]} 16... Na5 {[%clk
0:04:02.2]} 17. Nh5 {[%clk 0:04:30.9]} 17... g6 {[%clk 0:03:58.5]} 18. Nf6+
{[%clk 0:04:26.5]} 18... Nxf6 {[%clk 0:03:56.4]} 19. exf6 {[%clk 0:04:26.4]}
19... Qxf6 {[%clk 0:03:51.8]} 20. Ne5 {[%clk 0:04:25.7]} 20... Nc4 {[%clk
0:03:42.1]} 21. Qe3 {[%clk 0:04:22.8]} 21... Nxe3 {[%clk 0:03:40.3]} 22. Rxe3
{[%clk 0:04:21.9]} 22... Rc1+ {[%clk 0:03:36.8]} 0-1

[Event "Live Chess"]
[Site "Chess.com"]
[Date "2023.05.21"]
[Round "-"]
[White "PiotrD11"]
[Black "WilliamofOrange16th"]
[Result "0-1"]
[WhiteElo "1374"]
[BlackElo "1846"]
[TimeControl "300"]
[EndTime "8:54:25 PDT"]
[Termination "WilliamofOrange16th won by resignation"]

1. e4 {[%clk 0:04:58.6]} 1... d6 {[%clk 0:04:59.2]} 2. d4 {[%clk 0:04:56.8]}
2... Nf6 {[%clk 0:04:58.6]} 3. Nc3 {[%clk 0:04:55.1]} 3... Nbd7 {[%clk
0:04:47.9]} 4. Nf3 {[%clk 0:04:53]} 4... e5 {[%clk 0:04:43.4]} 5. d5 {[%clk
0:04:46.7]} 5... c6 {[%clk 0:04:40.8]} 6. Bc4 {[%clk 0:04:44.5]} 6... Be7 {[%clk
0:04:39.8]} 7. O-O {[%clk 0:04:42.9]} 7... O-O {[%clk 0:04:38.8]} 8. dxc6 {[%clk
0:04:37]} 8... bxc6 {[%clk 0:04:37.6]} 9. Bg5 {[%clk 0:04:32.9]} 9... Nc5 {[%clk
0:04:35.4]} 10. Bxf6 {[%clk 0:04:31]} 10... Bxf6 {[%clk 0:04:35.3]} 11. b4
{[%clk 0:04:26.7]} 11... Ne6 {[%clk 0:04:32.6]} 12. Bb3 {[%clk 0:04:18.8]} 12...
Nf4 {[%clk 0:04:28]} 13. g3 {[%clk 0:04:16]} 13... Nh3+ {[%clk 0:04:23.7]} 14.
Kg2 {[%clk 0:04:15.9]} 14... Ng5 {[%clk 0:04:22.7]} 15. Kg1 {[%clk 0:04:15.8]}
15... Bg4 {[%clk 0:04:20.1]} 16. Nxg5 {[%clk 0:03:48.6]} 16... Bxd1 {[%clk
0:04:17.9]} 17. Nxf7 {[%clk 0:03:48.5]} 17... Rxf7 {[%clk 0:04:15]} 18. Raxd1
{[%clk 0:03:48.2]} 18... Kf8 {[%clk 0:04:11.3]} 19. f4 {[%clk 0:03:41]} 19...
Re7 {[%clk 0:04:06.4]} 20. b5 {[%clk 0:03:38.4]} 20... cxb5 {[%clk 0:04:02.1]}
21. Nd5 {[%clk 0:03:36.4]} 21... a5 {[%clk 0:03:50.4]} 22. fxe5 {[%clk
0:03:28.1]} 22... Rxe5 {[%clk 0:03:50.3]} 23. Nxf6 {[%clk 0:03:06.4]} 23... gxf6
{[%clk 0:03:50.2]} 24. Bd5 {[%clk 0:03:03.9]} 24... Rc8 {[%clk 0:03:46.9]} 25.
Rd2 {[%clk 0:03:00.9]} 25... Qb6+ {[%clk 0:03:43.2]} 26. Kh1 {[%clk 0:02:57.5]}
26... Ke7 {[%clk 0:03:43.1]} 27. Rdf2 {[%clk 0:02:56.3]} 27... Rf8 {[%clk
0:03:41.3]} 28. g4 {[%clk 0:02:51.7]} 28... Qd4 {[%clk 0:03:37.2]} 29. g5 {[%clk
0:02:45.7]} 29... f5 {[%clk 0:03:33.9]} 30. Bb7 {[%clk 0:02:33.2]} 30... f4
{[%clk 0:03:21.2]} 31. Rxf4 {[%clk 0:02:10.6]} 31... Rxf4 {[%clk 0:03:21.1]} 32.
Rxf4 {[%clk 0:02:09.5]} 32... Rxg5 {[%clk 0:03:20.3]} 33. Rf1 {[%clk 0:02:01.4]}
33... Qd2 {[%clk 0:03:18]} 34. e5 {[%clk 0:01:57.3]} 34... d5 {[%clk 0:03:17.2]}
35. Bxd5 {[%clk 0:01:52.2]} 35... Qxd5+ {[%clk 0:03:16.2]} 0-1

[Event "Live Chess"]
[Site "Chess.com"]
[Date "2023.05.21"]
[Round "-"]
[White "jagbama"]
[Black "Ian-Morley"]
[Result "0-1"]
[WhiteElo "1189"]
[BlackElo "1106"]
[TimeControl "300"]
[EndTime "8:54:33 PDT"]
[Termination "Ian-Morley won by checkmate"]

1. e4 {[%clk 0:04:54.9]} 1... e5 {[%clk 0:04:59]} 2. Nf3 {[%clk 0:04:54.2]} 2...
Nc6 {[%clk 0:04:57.9]} 3. Nc3 {[%clk 0:04:52.9]} 3... d5 {[%clk 0:04:55.9]} 4.
Bb5 {[%clk 0:04:50.7]} 4... a6 {[%clk 0:04:54.8]} 5. Bxc6+ {[%clk 0:04:49.2]}
5... bxc6 {[%clk 0:04:54]} 6. exd5 {[%clk 0:04:48]} 6... cxd5 {[%clk 0:04:53.1]}
7. Nxe5 {[%clk 0:04:46.2]} 7... d4 {[%clk 0:04:52.3]} 8. Ne2 {[%clk 0:04:44.8]}
8... f6 {[%clk 0:04:50.1]} 9. Nd3 {[%clk 0:04:43.7]} 9... Bg4 {[%clk 0:04:46.9]}
10. O-O {[%clk 0:04:42.1]} 10... Bxe2 {[%clk 0:04:45.9]} 11. Qxe2+ {[%clk
0:04:41]} 11... Be7 {[%clk 0:04:45.6]} 12. Nb4 {[%clk 0:04:34.5]} 12... Qd7
{[%clk 0:04:42.3]} 13. d3 {[%clk 0:04:26.3]} 13... O-O-O {[%clk 0:04:40.4]} 14.
Nxa6 {[%clk 0:04:24.4]} 14... Qb5 {[%clk 0:04:35]} 15. Nxc7 {[%clk 0:04:18.1]}
15... Kxc7 {[%clk 0:04:32.9]} 16. Qxe7+ {[%clk 0:04:16.8]} 16... Qd7 {[%clk
0:04:31.7]} 17. Qxd7+ {[%clk 0:04:08.4]} 17... Rxd7 {[%clk 0:04:30.7]} 18. Bf4+
{[%clk 0:04:06.4]} 18... Kc6 {[%clk 0:04:29.1]} 19. a4 {[%clk 0:04:01.3]} 19...
Ne7 {[%clk 0:04:28.2]} 20. a5 {[%clk 0:04:00.1]} 20... Nd5 {[%clk 0:04:24.9]}
21. Bg3 {[%clk 0:03:54.6]} 21... Ra8 {[%clk 0:04:21.5]} 22. c4 {[%clk 0:03:50]}
22... Nb4 {[%clk 0:04:20.6]} 23. b3 {[%clk 0:03:43.8]} 23... Nc2 {[%clk
0:04:15.6]} 24. Ra4 {[%clk 0:03:29.4]} 24... Rb7 {[%clk 0:04:10.1]} 25. Rc1
{[%clk 0:03:26.9]} 25... Nb4 {[%clk 0:04:04.1]} 26. Re1 {[%clk 0:03:12.7]} 26...
Na6 {[%clk 0:04:01.5]} 27. Re6+ {[%clk 0:03:07.9]} 27... Kd7 {[%clk 0:04:00.2]}
28. Rd6+ {[%clk 0:03:06]} 28... Ke7 {[%clk 0:03:56.9]} 29. Rxd4 {[%clk
0:02:58.4]} 29... Rxb3 {[%clk 0:03:55.2]} 30. Bd6+ {[%clk 0:02:53.8]} 30... Kf7
{[%clk 0:03:53.4]} 31. c5 {[%clk 0:02:51]} 31... Rb1# {[%clk 0:03:52.2]} 0-1

[Event "Live Chess"]
[Site "Chess.com"]
[Date "2023.05.21"]
[Round "-"]
[White "defenderalist"]
[Black "Long1968"]
[Result "1-0"]
[WhiteElo "1627"]
[BlackElo "981"]
[TimeControl "300"]
[EndTime "8:54:43 PDT"]
[Termination "defenderalist won on time"]

1. e4 {[%clk 0:04:58.2]} 1... e6 {[%clk 0:04:55.4]} 2. Nf3 {[%clk 0:04:57.5]}
2... d5 {[%clk 0:04:53.1]} 3. exd5 {[%clk 0:04:56.3]} 3... exd5 {[%clk
0:04:51.2]} 4. d4 {[%clk 0:04:56.2]} 4... c6 {[%clk 0:04:46.6]} 5. Be2 {[%clk
0:04:56.1]} 5... Be7 {[%clk 0:04:43.5]} 6. O-O {[%clk 0:04:55.2]} 6... Nf6
{[%clk 0:04:41.3]} 7. h3 {[%clk 0:04:54.5]} 7... O-O {[%clk 0:04:39]} 8. c3
{[%clk 0:04:53.1]} 8... Be6 {[%clk 0:04:34.2]} 9. Bg5 {[%clk 0:04:51.7]} 9...
Nbd7 {[%clk 0:04:31.6]} 10. Nbd2 {[%clk 0:04:49.3]} 10... Re8 {[%clk 0:04:29.1]}
11. Bh4 {[%clk 0:04:46.9]} 11... Nf8 {[%clk 0:04:20.4]} 12. Ne5 {[%clk 0:04:44]}
12... Ng6 {[%clk 0:04:09.9]} 13. f4 {[%clk 0:04:42.4]} 13... Ne4 {[%clk
0:03:55.8]} 14. Bxe7 {[%clk 0:04:40.2]} 14... Qxe7 {[%clk 0:03:43.5]} 15. f5
{[%clk 0:04:38.9]} 15... Nxe5 {[%clk 0:03:36.7]} 16. fxe6 {[%clk 0:04:28.8]}
16... Nxd2 {[%clk 0:03:02]} 17. exf7+ {[%clk 0:04:16]} 17... Nxf7 {[%clk
0:02:57.3]} 18. Qxd2 {[%clk 0:04:08.8]} 18... Qxe2 {[%clk 0:02:53.1]} 19. Qf4
{[%clk 0:04:07.5]} 19... Qe3+ {[%clk 0:02:42]} 20. Rf2 {[%clk 0:03:57.2]} 20...
Qxf4 {[%clk 0:02:35.9]} 21. Rxf4 {[%clk 0:03:56.2]} 21... Re2 {[%clk 0:02:28.5]}
22. Raf1 {[%clk 0:03:55.3]} 22... Re7 {[%clk 0:02:16.4]} 23. g4 {[%clk
0:03:51.1]} 23... Rae8 {[%clk 0:01:57.7]} 24. h4 {[%clk 0:03:49.6]} 24... Nd6
{[%clk 0:01:32.9]} 25. g5 {[%clk 0:03:42.4]} 25... Re1 {[%clk 0:01:26]} 26. Rxe1
{[%clk 0:03:37.7]} 26... Rxe1+ {[%clk 0:01:22.9]} 27. Kf2 {[%clk 0:03:37.2]}
27... Re4 {[%clk 0:01:16.7]} 28. Rf3 {[%clk 0:03:29.4]} 28... Rxh4 {[%clk
0:01:11]} 29. b3 {[%clk 0:03:23.2]} 29... Rh2+ {[%clk 0:01:01.1]} 30. Ke3 {[%clk
0:03:22.2]} 30... Rxa2 {[%clk 0:00:57.5]} 31. c4 {[%clk 0:03:21.3]} 31... dxc4
{[%clk 0:00:52.9]} 32. bxc4 {[%clk 0:03:20.3]} 32... Ra3+ {[%clk 0:00:50.5]} 33.
Kf4 {[%clk 0:03:19]} 33... Rxf3+ {[%clk 0:00:47.3]} 34. Kxf3 {[%clk 0:03:18.9]}
34... Nxc4 {[%clk 0:00:43.9]} 35. Ke4 {[%clk 0:03:18.8]} 35... b5 {[%clk
0:00:39.6]} 36. Kd3 {[%clk 0:03:17]} 36... Kf7 {[%clk 0:00:36.3]} 37. Kc3 {[%clk
0:03:16.5]} 37... Kg6 {[%clk 0:00:33.3]} 38. Kb4 {[%clk 0:03:16.4]} 38... Kxg5
{[%clk 0:00:31.2]} 39. Kc5 {[%clk 0:03:16.3]} 39... Kf4 {[%clk 0:00:22.5]} 40.
Kxc6 {[%clk 0:03:16.2]} 40... b4 {[%clk 0:00:18.7]} 41. Kb5 {[%clk 0:03:16.1]}
41... b3 {[%clk 0:00:17]} 42. d5 {[%clk 0:03:16]} 42... b2 {[%clk 0:00:14.6]}
43. Kxc4 {[%clk 0:03:15.9]} 43... b1=Q {[%clk 0:00:11.4]} 44. Kc5 {[%clk
0:03:15.8]} 44... Qc2+ {[%clk 0:00:08.6]} 45. Kd6 {[%clk 0:03:13.7]} 45... Qd3
{[%clk 0:00:06.7]} 46. Ke6 {[%clk 0:03:13.1]} 46... g5 {[%clk 0:00:04.3]} 47. d6
{[%clk 0:03:13]} 47... g4 {[%clk 0:00:01.7]} 48. d7 {[%clk 0:03:12.9]} 1-0

[Event "Live Chess"]
[Site "Chess.com"]
[Date "2023.05.21"]
[Round "-"]
[White "OleksiyJr1"]
[Black "Ra2orLeaf"]
[Result "0-1"]
[WhiteElo "1037"]
[BlackElo "1159"]
[TimeControl "300"]
[EndTime "8:54:49 PDT"]
[Termination "Ra2orLeaf won by resignation"]

1. e4 {[%clk 0:04:59]} 1... c5 {[%clk 0:04:59.2]} 2. Nf3 {[%clk 0:04:57.8]} 2...
Nc6 {[%clk 0:04:58.7]} 3. d4 {[%clk 0:04:55.1]} 3... cxd4 {[%clk 0:04:56.8]} 4.
Nxd4 {[%clk 0:04:55]} 4... e5 {[%clk 0:04:55.6]} 5. Nxc6 {[%clk 0:04:53.6]} 5...
bxc6 {[%clk 0:04:55.5]} 6. Nc3 {[%clk 0:04:53.5]} 6... Bb4 {[%clk 0:04:48.2]} 7.
Bc4 {[%clk 0:04:53.4]} 7... d6 {[%clk 0:04:46.7]} 8. Qf3 {[%clk 0:04:48.2]} 8...
Qf6 {[%clk 0:04:42]} 9. Qxf6 {[%clk 0:04:46.8]} 9... Nxf6 {[%clk 0:04:41.9]} 10.
Bg5 {[%clk 0:04:44.9]} 10... Nxe4 {[%clk 0:04:38.6]} 11. Bd2 {[%clk 0:04:41.2]}
11... Nxd2 {[%clk 0:04:32.6]} 12. Kxd2 {[%clk 0:04:41.1]} 12... d5 {[%clk
0:04:27.2]} 13. a3 {[%clk 0:04:40.7]} 13... Bxc3+ {[%clk 0:04:24.9]} 0-1

[Event "Live Chess"]
[Site "Chess.com"]
[Date "2023.05.21"]
[Round "-"]
[White "MarkLim1"]
[Black "jimwad"]
[Result "1-0"]
[WhiteElo "1711"]
[BlackElo "1221"]
[TimeControl "300"]
[EndTime "8:54:52 PDT"]
[Termination "MarkLim1 won by resignation"]

1. e4 {[%clk 0:04:59.2]} 1... e5 {[%clk 0:04:58.7]} 2. Bc4 {[%clk 0:04:57.7]}
2... Bc5 {[%clk 0:04:55.6]} 3. Nf3 {[%clk 0:04:56.4]} 3... Nc6 {[%clk
0:04:54.2]} 4. O-O {[%clk 0:04:55.5]} 4... Nf6 {[%clk 0:04:51.1]} 5. d3 {[%clk
0:04:54.4]} 5... h6 {[%clk 0:04:47.8]} 6. c3 {[%clk 0:04:53.3]} 6... O-O {[%clk
0:04:46.1]} 7. Bb3 {[%clk 0:04:52.5]} 7... a6 {[%clk 0:04:43.7]} 8. Nbd2 {[%clk
0:04:51.7]} 8... d6 {[%clk 0:04:41.4]} 9. Re1 {[%clk 0:04:49.2]} 9... b5 {[%clk
0:04:37.8]} 10. Nf1 {[%clk 0:04:48.3]} 10... Bb6 {[%clk 0:04:35.7]} 11. d4
{[%clk 0:04:46.8]} 11... exd4 {[%clk 0:04:34.1]} 12. cxd4 {[%clk 0:04:45]} 12...
Na5 {[%clk 0:04:24.6]} 13. Bc2 {[%clk 0:04:42.6]} 13... c5 {[%clk 0:04:19.9]}
14. d5 {[%clk 0:04:41.3]} 14... Nc4 {[%clk 0:04:14.9]} 15. b3 {[%clk 0:04:38.6]}
15... Ne5 {[%clk 0:04:09.7]} 16. Nxe5 {[%clk 0:04:33.8]} 16... dxe5 {[%clk
0:04:08.7]} 17. Kh1 {[%clk 0:04:32.7]} 17... Bb7 {[%clk 0:04:03.8]} 18. Qe2
{[%clk 0:04:31.3]} 18... Rc8 {[%clk 0:03:50.4]} 19. Bb2 {[%clk 0:04:28.1]} 19...
Re8 {[%clk 0:03:45.4]} 20. Rad1 {[%clk 0:04:24.8]} 20... c4 {[%clk 0:03:39.1]}
21. bxc4 {[%clk 0:04:23.3]} 21... bxc4 {[%clk 0:03:38]} 22. Ne3 {[%clk
0:04:19.1]} 22... c3 {[%clk 0:03:35.7]} 23. Ba3 {[%clk 0:04:16.7]} 23... Bd4
{[%clk 0:03:33.4]} 24. Nf5 {[%clk 0:04:11.7]} 24... Qa5 {[%clk 0:03:09.1]} 25.
Bc1 {[%clk 0:03:59.5]} 25... Qxa2 {[%clk 0:02:59.5]} 26. Nxd4 {[%clk 0:03:58.1]}
26... exd4 {[%clk 0:02:58]} 27. Rxd4 {[%clk 0:03:57.2]} 27... Bxd5 {[%clk
0:02:48.2]} 28. e5 {[%clk 0:03:52.7]} 28... Nd7 {[%clk 0:02:34.6]} 29. f4 {[%clk
0:03:47.3]} 29... Be6 {[%clk 0:02:31]} 30. f5 {[%clk 0:03:41.2]} 30... Bb3
{[%clk 0:02:23.3]} 31. Bxb3 {[%clk 0:03:30.3]} 31... Qxb3 {[%clk 0:02:20.8]} 32.
Rxd7 {[%clk 0:03:28.2]} 32... a5 {[%clk 0:02:07.1]} 33. e6 {[%clk 0:03:15.2]}
33... fxe6 {[%clk 0:02:05.1]} 34. fxe6 {[%clk 0:03:14.4]} 34... Qa4 {[%clk
0:01:50.9]} 35. Qg4 {[%clk 0:03:05.9]} 35... g5 {[%clk 0:01:38.4]} 36. Qd4
{[%clk 0:02:51]} 36... Qxd4 {[%clk 0:01:35.6]} 37. Rxd4 {[%clk 0:02:49.7]} 37...
Re7 {[%clk 0:01:30.8]} 38. Ra4 {[%clk 0:02:46.7]} 38... Rc5 {[%clk 0:01:26.4]}
39. g4 {[%clk 0:02:44.3]} 39... Kg7 {[%clk 0:01:25.1]} 40. Ba3 {[%clk
0:02:38.4]} 1-0

[Event "Live Chess"]
[Site "Chess.com"]
[Date "2023.05.21"]
[Round "-"]
[White "NotHarryV"]
[Black "seabuck"]
[Result "1-0"]
[WhiteElo "1516"]
[BlackElo "1894"]
[TimeControl "300"]
[EndTime "8:54:54 PDT"]
[Termination "NotHarryV won on time"]

1. d4 {[%clk 0:04:58.4]} 1... e6 {[%clk 0:04:58.5]} 2. c4 {[%clk 0:04:57.1]}
2... d5 {[%clk 0:04:57.6]} 3. Nf3 {[%clk 0:04:56.2]} 3... c5 {[%clk 0:04:50]} 4.
g3 {[%clk 0:04:54]} 4... Nc6 {[%clk 0:04:48]} 5. cxd5 {[%clk 0:04:52.5]} 5...
exd5 {[%clk 0:04:46.5]} 6. Bg2 {[%clk 0:04:51.4]} 6... Nf6 {[%clk 0:04:40.3]} 7.
O-O {[%clk 0:04:50.6]} 7... Be7 {[%clk 0:04:37.8]} 8. dxc5 {[%clk 0:04:48.2]}
8... Bxc5 {[%clk 0:04:36.4]} 9. Qc2 {[%clk 0:04:46.3]} 9... Be7 {[%clk
0:04:29.2]} 10. Nc3 {[%clk 0:04:26]} 10... O-O {[%clk 0:04:22.6]} 11. Bg5 {[%clk
0:04:19.6]} 11... Be6 {[%clk 0:04:12.4]} 12. Rad1 {[%clk 0:04:15.5]} 12... Nb4
{[%clk 0:04:10]} 13. Qb1 {[%clk 0:04:07.6]} 13... h6 {[%clk 0:04:05.3]} 14. Bxf6
{[%clk 0:04:05.9]} 14... Bxf6 {[%clk 0:04:03.7]} 15. a3 {[%clk 0:04:03.9]} 15...
Nc6 {[%clk 0:03:39.9]} 16. e4 {[%clk 0:03:48.5]} 16... d4 {[%clk 0:03:28.6]} 17.
e5 {[%clk 0:03:34]} 17... Nxe5 {[%clk 0:02:59.2]} 18. Nxd4 {[%clk 0:03:25.3]}
18... Qb6 {[%clk 0:02:49.1]} 19. Nxe6 {[%clk 0:03:20.8]} 19... fxe6 {[%clk
0:02:41.2]} 20. Ne4 {[%clk 0:03:01.7]} 20... Nc4 {[%clk 0:02:23]} 21. Nxf6+
{[%clk 0:02:56]} 21... Rxf6 {[%clk 0:02:20.1]} 22. Qa2 {[%clk 0:02:45.9]} 22...
Rc8 {[%clk 0:01:59.6]} 23. b3 {[%clk 0:02:29.1]} 23... Ne5 {[%clk 0:01:48.2]}
24. b4 {[%clk 0:02:04.1]} 24... Rc3 {[%clk 0:01:28.9]} 25. Rde1 {[%clk
0:01:59.1]} 25... Qd4 {[%clk 0:01:16.2]} 26. Bxb7 {[%clk 0:01:41.8]} 26... Nf3+
{[%clk 0:01:08]} 27. Bxf3 {[%clk 0:01:40.5]} 27... Rcxf3 {[%clk 0:01:05.4]} 28.
b5 {[%clk 0:01:27.2]} 28... Kh7 {[%clk 0:00:51.8]} 29. a4 {[%clk 0:01:20.4]}
29... e5 {[%clk 0:00:46.9]} 30. a5 {[%clk 0:01:11.4]} 30... e4 {[%clk
0:00:38.1]} 31. Qb1 {[%clk 0:00:49.1]} 31... g6 {[%clk 0:00:22.1]} 32. Qxe4
{[%clk 0:00:43]} 32... Qc5 {[%clk 0:00:13.2]} 33. Qb7+ {[%clk 0:00:39.5]} 33...
Rf7 {[%clk 0:00:11.4]} 34. Qc6 {[%clk 0:00:37.2]} 34... Qb4 {[%clk 0:00:03.9]}
35. b6 {[%clk 0:00:30.2]} 35... Rxf2 {[%clk 0:00:02.9]} 36. b7 {[%clk 0:00:10]}
1-0

[Event "Live Chess"]
[Site "Chess.com"]
[Date "2023.05.21"]
[Round "-"]
[White "FlyingChessKestrel13"]
[Black "Rusty_Bridges"]
[Result "1-0"]
[WhiteElo "2084"]
[BlackElo "1527"]
[TimeControl "300"]
[EndTime "8:55:02 PDT"]
[Termination "FlyingChessKestrel13 won by resignation"]

1. e4 {[%clk 0:04:56.7]} 1... d6 {[%clk 0:04:55.7]} 2. d4 {[%clk 0:04:48.1]}
2... Nf6 {[%clk 0:04:53.2]} 3. Nc3 {[%clk 0:04:47.1]} 3... Nbd7 {[%clk
0:04:51.3]} 4. Be3 {[%clk 0:04:45.9]} 4... h6 {[%clk 0:04:45]} 5. f3 {[%clk
0:04:45.3]} 5... e5 {[%clk 0:04:43.3]} 6. d5 {[%clk 0:04:43.7]} 6... Be7 {[%clk
0:04:40.2]} 7. Bd3 {[%clk 0:04:41.6]} 7... c6 {[%clk 0:04:37.4]} 8. Nge2 {[%clk
0:04:38.7]} 8... Qc7 {[%clk 0:04:35.3]} 9. O-O {[%clk 0:04:36.9]} 9... g5 {[%clk
0:04:32.8]} 10. Ng3 {[%clk 0:04:34.5]} 10... Nf8 {[%clk 0:04:30.1]} 11. dxc6
{[%clk 0:04:30.9]} 11... bxc6 {[%clk 0:04:28.4]} 12. Bc4 {[%clk 0:04:22.4]}
12... Ng6 {[%clk 0:04:23.5]} 13. Bb3 {[%clk 0:04:17.9]} 13... Nf4 {[%clk
0:04:21.3]} 14. Bxf4 {[%clk 0:04:16.6]} 14... gxf4 {[%clk 0:04:20.1]} 15. Nge2
{[%clk 0:04:12.2]} 15... Rg8 {[%clk 0:04:14.3]} 16. Kh1 {[%clk 0:04:10.5]} 16...
Be6 {[%clk 0:03:59.6]} 17. Bxe6 {[%clk 0:04:06.8]} 17... fxe6 {[%clk 0:03:58.6]}
18. g3 {[%clk 0:04:06.4]} 18... fxg3 {[%clk 0:03:49.9]} 19. Nxg3 {[%clk
0:04:04.8]} 19... Bd8 {[%clk 0:03:40]} 20. f4 {[%clk 0:04:02.3]} 20... exf4
{[%clk 0:03:34.6]} 21. Rxf4 {[%clk 0:04:00.5]} 21... Qe7 {[%clk 0:03:26.3]} 22.
Qf3 {[%clk 0:03:56.3]} 22... Rb8 {[%clk 0:03:08.7]} 23. b3 {[%clk 0:03:54.5]}
23... Rg6 {[%clk 0:02:51.4]} 24. Rf1 {[%clk 0:03:51.5]} 24... Kf7 {[%clk
0:02:43.1]} 25. Nh5 {[%clk 0:03:47.9]} 25... Rb6 {[%clk 0:02:26.5]} 26. Nxf6
{[%clk 0:03:45.6]} 26... Rxf6 {[%clk 0:02:24.7]} 27. Rxf6+ {[%clk 0:03:44.4]}
27... Qxf6 {[%clk 0:02:23]} 28. Qh5+ {[%clk 0:03:43.9]} 1-0

[Event "Live Chess"]
[Site "Chess.com"]
[Date "2023.05.21"]
[Round "-"]
[White "educatedlad"]
[Black "Conradical12"]
[Result "1-0"]
[WhiteElo "1625"]
[BlackElo "1516"]
[TimeControl "300"]
[EndTime "8:55:02 PDT"]
[Termination "educatedlad won by checkmate"]

1. e4 {[%clk 0:04:59.5]} 1... e5 {[%clk 0:04:58.3]} 2. Nc3 {[%clk 0:04:58.4]}
2... Nc6 {[%clk 0:04:57.8]} 3. Bc4 {[%clk 0:04:57.3]} 3... Nf6 {[%clk
0:04:57.2]} 4. d3 {[%clk 0:04:56]} 4... Bc5 {[%clk 0:04:56.6]} 5. f4 {[%clk
0:04:55.4]} 5... d6 {[%clk 0:04:55.3]} 6. Nf3 {[%clk 0:04:55]} 6... Ng4 {[%clk
0:04:54.6]} 7. Qe2 {[%clk 0:04:51.8]} 7... O-O {[%clk 0:04:49.8]} 8. h3 {[%clk
0:04:50.3]} 8... Nd4 {[%clk 0:04:43.2]} 9. Nxd4 {[%clk 0:04:47.4]} 9... exd4
{[%clk 0:04:42.2]} 10. hxg4 {[%clk 0:04:45.8]} 10... dxc3 {[%clk 0:04:40.8]} 11.
bxc3 {[%clk 0:04:43.3]} 11... Qf6 {[%clk 0:04:37.4]} 12. d4 {[%clk 0:04:41]}
12... Bb6 {[%clk 0:04:34.4]} 13. Be3 {[%clk 0:04:36.1]} 13... Qe7 {[%clk
0:04:31.7]} 14. g5 {[%clk 0:04:31.2]} 14... Qxe4 {[%clk 0:04:29.8]} 15. Bd3
{[%clk 0:04:30.1]} 15... Qe7 {[%clk 0:04:27.5]} 16. Bxh7+ {[%clk 0:04:19.9]}
16... Kh8 {[%clk 0:04:25.2]} 17. Bd3+ {[%clk 0:04:16.1]} 17... Kg8 {[%clk
0:04:24.4]} 18. Qh5 {[%clk 0:04:15.1]} 18... Qxe3+ {[%clk 0:04:20.7]} 19. Be2
{[%clk 0:04:14.3]} 19... f6 {[%clk 0:04:13.8]} 20. g6 {[%clk 0:04:12.8]} 20...
Re8 {[%clk 0:04:04.8]} 21. Qh8# {[%clk 0:04:11.3]} 1-0

[Event "Live Chess"]
[Site "Chess.com"]
[Date "2023.05.21"]
[Round "-"]
[White "stevochess11"]
[Black "GEMdzq"]
[Result "0-1"]
[WhiteElo "1658"]
[BlackElo "2221"]
[TimeControl "300"]
[EndTime "8:55:04 PDT"]
[Termination "GEMdzq won by resignation"]

1. d4 {[%clk 0:04:56.7]} 1... Nf6 {[%clk 0:04:58.6]} 2. Nf3 {[%clk 0:04:52.6]}
2... e6 {[%clk 0:04:57.9]} 3. e3 {[%clk 0:04:50.9]} 3... c5 {[%clk 0:04:56.6]}
4. Bd3 {[%clk 0:04:48.2]} 4... Nc6 {[%clk 0:04:54]} 5. O-O {[%clk 0:04:47.1]}
5... Be7 {[%clk 0:04:53.6]} 6. b3 {[%clk 0:04:45.3]} 6... O-O {[%clk 0:04:52.6]}
7. Bb2 {[%clk 0:04:44.5]} 7... b6 {[%clk 0:04:49.2]} 8. c4 {[%clk 0:04:43]} 8...
Bb7 {[%clk 0:04:47.4]} 9. Ne5 {[%clk 0:04:41.3]} 9... d6 {[%clk 0:04:45.8]} 10.
Nxc6 {[%clk 0:04:38.3]} 10... Bxc6 {[%clk 0:04:45.7]} 11. d5 {[%clk 0:04:32.8]}
11... exd5 {[%clk 0:04:40.5]} 12. cxd5 {[%clk 0:04:31.9]} 12... Bxd5 {[%clk
0:04:33.6]} 13. Bxf6 {[%clk 0:04:23.3]} 13... Bxf6 {[%clk 0:04:33.5]} 14. Qh5
{[%clk 0:04:08.2]} 14... g6 {[%clk 0:04:32.6]} 15. Qxd5 {[%clk 0:03:54.5]} 15...
Bxa1 {[%clk 0:04:31.6]} 16. Nd2 {[%clk 0:03:51.6]} 16... Be5 {[%clk 0:04:21.2]}
17. Nc4 {[%clk 0:03:28.6]} 17... Qe7 {[%clk 0:04:18]} 18. f4 {[%clk 0:03:11.6]}
18... Bf6 {[%clk 0:04:00.3]} 19. g4 {[%clk 0:02:43.9]} 19... b5 {[%clk 0:03:46]}
20. Nxd6 {[%clk 0:02:32.5]} 20... Rad8 {[%clk 0:03:43.7]} 21. g5 {[%clk
0:02:23.3]} 21... Bg7 {[%clk 0:03:41.7]} 22. Qxc5 {[%clk 0:02:14.3]} 22... Qxd6
{[%clk 0:03:40.6]} 23. Qxb5 {[%clk 0:02:12.8]} 23... Qxd3 {[%clk 0:03:38.7]} 0-1